Cogmind - Beta 15 @@@ ROGUE MODE // 2025.05.28 @ 23:51:10 Player: OctagonalPrism Result: Destroyed by Piercing Trap Performance ------------- Evolutions (0) 0 Regions Visited (2) 400 Robots Destroyed (14) 70 Value Destroyed (400) 400 Prototype IDs (2) 40 Alien Tech Used (0) 0 Bonus (0) 0 TOTAL SCORE: 910 Bonus ------- None Cogmind --------- Core Integrity 0/250 Matter 145/300 Energy 99/100 System Corruption 5% Temperature Cool (0) Movement Core (200) Ox3 Location -10/Subcaves Parts ------- > --- POWER (1) -------- (None) > --- PROPULSION (2) --- Subdweller Monowheel > --- UTILITY (2) ------ Medium Storage Unit > --- WEAPON (2) ------- Small Laser > --- INVENTORY (10) --- Subdweller Power Source Disposable Heat Sink Medium Laser Battle Rifle Peak State ------------ > --- POWER ------------ Light Ion Engine > --- PROPULSION ------- Compact Wheel Compact Wheel > --- UTILITY ---------- Medium Storage Unit Improved Terrain Scanner > --- WEAPON ----------- Medium Laser Small Laser > --- INVENTORY -------- Light Ion Engine Grenade Launcher [Rating: 9] Favorites ----------- Power Light Ion Engine Engine Light Ion Engine Propulsion Compact Wheel Wheel Compact Wheel Utility Medium Storage Unit Device Subdweller Optics Storage Medium Storage Unit Weapon Small Laser Energy Gun Small Laser Launcher Grenade Launcher Build | -11 -10 -10 ------- Run | Yrd Mat Sub Slots Evolved . | . . . Power . | . . . Propulsion . | . . . Utility . | . . . Weapon . | . . . Parts Attached 14 | 6 1 7 Power 2 | 1 . 1 Engine 2 | 1 . 1 Core . | . . . Reactor . | . . . Propulsion 4 | 2 . 2 Treads . | . . . Leg . | . . . Wheel 4 | 2 . 2 Hover . | . . . Flight . | . . . Utility 5 | 1 1 3 Device 3 | . . 3 Storage 2 | 1 1 . Processor . | . . . Hackware . | . . . Protection . | . . . Artifact . | . . . Weapon 3 | 2 . 1 Energy Gun 2 | 2 . . Energy Cannon . | . . . Ballistic Gun . | . . . Ballistic Cannon . | . . . Launcher 1 | . . 1 Special Weapon . | . . . Impact Weapon . | . . . Slashing Weapon . | . . . Piercing Weapon . | . . . Special Melee Weapon . | . . . Unidentified Prototypes . | . . . Parts Lost 9 | . . 9 Power 2 | . . 2 Propulsion 3 | . . 3 Utility 3 | . . 3 Weapon 1 | . . 1 Highest Loss Streak 4 | . . 4 To Critical Strikes . | . . . Average Backups 2 | . 2 3 Power . | . 1 . Propulsion . | . . . Utility . | . 1 . Weapon 1 | . . 1 Tool/Special . | . . . Unused Backups 3 | . . 3 Power 1 | . . 1 Propulsion . | . . . Utility 1 | . . 1 Weapon 1 | . . 1 Tool/Special . | . . . Average Slot Usage (%) 90 | . 85 93 Engine 12 | . 14 11 Wheel 26 | . 28 26 Device 7 | . . 12 Storage 14 | . 14 14 Energy Gun 23 | . 28 21 Launcher 3 | . . 6 Peak Build Rating 9 | 6 7 9 Average Rating 7 | 4 6 8 On Entrance 4 | . 6 6 Naked Turns . | . . . Heaviest Build 19 | 11 16 19 Greatest Support 36 | 32 32 36 Greatest Overweight (x) 3 | . . 3 Average Overweight (x) . | . . . Largest Inventory Capacity 10 | 8 10 10 Average Capacity 9 | 7 8 10 Most Carried 5 | 2 3 5 Average Carried 2 | . 2 3 Final Capacity 10 | 8 10 10 Final Carried 4 | 2 3 4 Class Distribution -------------------- 100% | Mutant Dominant Class ---------------- Mutant | -10/Materials Mutant | -10/Subcaves Resources | -11 -10 -10 ----------- Run | Yrd Mat Sub Matter Collected 400 | 174 96 130 Remotely . | . . . Salvage Created 351 | 82 94 175 Parts 23 | 3 6 14 Haulers Intercepted . | . . . Recyclers Shooed 1 | . 1 . Parts Field Recycled . | . . . Retrieved Matter . | . . . Parts Self-Destructed . | . . . Prevented . | . . . Kills | -11 -10 -10 ------- Run | Yrd Mat Sub Combat Hostiles Destroyed 9 | . 1 8 Guns 5 | . 1 4 AOE 4 | . . 4 Classes Destroyed 7 | 2 4 1 Worker 1 | . 1 . Tunneler 1 | 1 . . Recycler 1 | 1 . . Operator 1 | . 1 . Watcher 1 | . 1 . Grunt 1 | . 1 . Subdweller 8 | . . 8 Best Kill Streak 3 | 2 2 3 Combat Bots Only 3 | . 1 3 Max Kills in Single Turn 1 | 1 1 1 Gunslinging . | . . . Exploded 1 | . . 1 Melee . | . . . Uniques/NPCs Destroyed . | . . . Combat | -11 -10 -10 -------- Run | Yrd Mat Sub Hostile Shots Fired 60 | . 7 53 Missed 24 | . 1 23 Hits 36 | . 6 30 Projectile 36 | . 6 30 Critical Strikes 1 | . . 1 Damage Taken 843 | . 64 779 Core 262 | . 32 230 Absorbed by Shields . | . . . Core Remaining (%) 100 | 100 . . Volleys Fired 68 | 7 12 49 Largest 2 | 2 2 2 Hottest 90 | 90 90 90 Shots Fired 116 | 14 20 82 Gun 96 | 14 20 62 Cannon . | . . . Launcher 20 | . . 20 Special . | . . . Kinetic . | . . . Thermal 96 | 14 20 62 Explosive 20 | . . 20 Electromagnetic . | . . . Robot Hit Streak 26 | 6 8 26 Robot Miss Streak 3 | 1 3 2 Penetration Max . | . . . Secondary Targets . | . . . Shots Hit Robots 75 | 11 12 52 Core Hits 27 | 3 6 18 Critical Kills . | . . . Critical Parts Destroyed . | . . . Critical Strikes 3 | 1 . 2 Burn 3 | 1 . 2 Melee Attacks . | . . . Impact . | . . . Slashing . | . . . Piercing . | . . . Sneak Attacks . | . . . Combat Hostiles . | . . . Follow-up Attacks . | . . . Damage Inflicted 1645 | 129 165 1351 Guns 808 | 129 165 514 Cannons . | . . . Explosions 837 | . . 837 Melee . | . . . Ramming . | . . . Kinetic . | . . . Thermal 808 | 129 165 514 Explosive 837 | . . 837 Electromagnetic . | . . . Impact . | . . . Slashing . | . . . Piercing . | . . . Highest Corruption 5 | . 5 5 Average Corruption 4 | . 4 5 Corruption Purged . | . . . Corruption Blocked . | . . . Effects 16 | . 2 14 Message Errors 6 | . . 6 Matter Fused 3 | . 1 2 Heat Flow Errors 3 | . . 3 Energy Discharges 1 | . . 1 Data Loss (minor) 1 | . 1 . Weapon Failures 2 | . . 2 Overload Shots . | . . . Overflow Damage . | . . . Projectiles . | . . . Explosions . | . . . Melee . | . . . Knockbacks . | . . . Impact . | . . . Kinetic . | . . . Secondary . | . . . Self-Inflicted Damage . | . . . Shots . | . . . Rammed . | . . . Targets Rammed . | . . . Kicked . | . . . Crushed . | . . . Highest Temperature 235 | 100 180 235 Average Temperature 66 | 44 63 112 Received Heat Transfer 129 | . 36 93 Siege Activations . | . . . Martial Activations . | . . . Shielding Activations . | . . . Robots Disrupted . | . . . Combat Hostiles . | . . . Robots Corrupted . | . . . Combat Hostiles . | . . . Parts Fried . | . . . Impact Corruptions . | . . . Robots Melted . | . . . Combat Hostiles . | . . . Parts Melted 5 | 2 1 2 Heat Transferred 2319 | 421 422 1476 Parts Sabotaged . | . . . Parts Stolen . | . . . Parts Stripped . | . . . Power Chain Reactions . | . . . Alert | -11 -10 -10 ------- Run | Yrd Mat Sub Maximum Alert Level . | . . . Low Security (%) 100 | 100 100 . Level 1 . | . . . Level 2 . | . . . Level 3 . | . . . Level 4 . | . . . Level 5 . | . . . High Security . | . . . Max Security . | . . . Peak Influence 31 | 5 31 . Initial 3 | . 3 . Average 3 | 1 4 . Influence Increases 83 | 10 73 . Destroy 0b10 Robot/C 20 | . 20 . Destroy 0b10 Robot/NC 25 | 10 15 . Destroy Leader 2 | . 2 . Successful Hack 5 | . 5 . Select Force Hacks 30 | . 30 . Destroy Structure 1 | . 1 . Influence Decreases 83 | 5 67 11 Entered New Map 8 | . 2 6 Time Decay 75 | 5 65 5 Squads Dispatched 1 | . 1 . Investigation 1 | . 1 . Extermination . | . . . Reinforcement . | . . . Assault . | . . . Garrison . | . . . Intercept . | . . . Searches Triggered . | . . . Construction Impeded . | . . . Haulers Reinforced . | . . . Active Scanning Responses . | . . . Cargo Convoy Interrupts . | . . . Stealth | -11 -10 -10 --------- Run | Yrd Mat Sub Distress Signals . | . . . Communications Jammed . | . . . Distress Signals . | . . . Times Spotted 15 | . 7 8 Peak Tracking Total 2 | . 2 2 Tactical Retreats . | . . . Traps | -11 -10 -10 ------- Run | Yrd Mat Sub Traps Triggered 6 | . 3 3 Indirectly . | . . . Trap Hack Attempts . | . . . Triggered . | . . . Disarmed . | . . . Reprogrammed . | . . . Reused . | . . . Traps Extracted . | . . . Installed . | . . . Triggered . | . . . Machines | -11 -10 -10 ---------- Run | Yrd Mat Sub Machines Disabled . | . . . Max in Single Turn . | . . . Machines Repaired . | . . . Machines Dismantled . | . . . Machines Sabotaged . | . . . Overloaded Fab Kills . | . . . Hacking | -11 -10 -10 --------- Run | Yrd Mat Sub Machines Accessed 4 | . 4 . Terminals 3 | . 3 . Fabricators . | . . . Repair Stations . | . . . Recycling Units 1 | . 1 . Scanalyzers . | . . . Garrison Access . | . . . Total Hacks 8 | . 8 . Successful 6 | . 6 . Failed 2 | . 2 . Catastrophic . | . . . Database Lockouts . | . . . Manual 5 | . 5 . Terminals 7 | . 7 . Fabricators . | . . . Repair Stations . | . . . Recycling Units 1 | . 1 . Scanalyzers . | . . . Garrison Access . | . . . Terminal Hacks 2 | . 2 . Prototype ID Bank 1 | . 1 . Zone Layout 1 | . 1 . Fabricator Hacks . | . . . Repair Station Hacks . | . . . Recycling Unit Hacks . | . . . Scanalyzer . | . . . Garrison Access Hacks . | . . . Unauthorized Hacks 4 | . 4 . Terminals 3 | . 3 . Botnet 3 | . 3 . Fabricators . | . . . Repair Stations . | . . . Recycling Units 1 | . 1 . Tunnel 1 | . 1 . Scanalyzers . | . . . Garrison Access . | . . . Data Cores Recovered 1 | . 1 . Used . | . . . Hacking Detections 3 | . 3 . Full Trace Events . | . . . Feedback Events . | . . . Feedback Blocked . | . . . Robot Schematics Acquired . | . . . Robots Built . | . . . Authchips . | . . . Time . | . . . Total Robot Build Rating . | . . . Part Schematics Acquired . | . . . Parts Built . | . . . Authchips . | . . . Time . | . . . Total Part Build Rating . | . . . Parts Repaired . | . . . Time . | . . . Parts Recycled . | . . . Recycled Matter . | . . . Retrieved Matter . | . . . Retrieved Components . | . . . Parts Scanalyzed . | . . . Part Schematics Acquired . | . . . Parts Damaged . | . . . Bothacking | -11 -10 -10 ------------ Run | Yrd Mat Sub Used RIF Installer . | . . . Robots Hacked . | . . . Non-combat . | . . . Combat . | . . . Robot Hacks Applied . | . . . Relay Couplers Released . | . . . Fabnet Peak Effective % . | . . . Robots Rewired . | . . . Allies Hacked . | . . . Hacks Repelled . | . . . Allies | -11 -10 -10 -------- Run | Yrd Mat Sub Total Allies . | . . . Largest Group . | . . . Highest-Rated Group . | . . . Highest-Rated Ally . | . . . Total Orders . | . . . Ally Attacks . | . . . Total Damage . | . . . Kills . | . . . Allies Corrupted . | . . . Allies Melted . | . . . Intel | -11 -10 -10 ------- Run | Yrd Mat Sub Active Infowar (turns) 564 | . . 564 Optics 499 | . . 499 Terrain 65 | . . 65 Robot Analysis Total . | . . . Derelict Logs Recovered 1 | . . 1 Drone Launches . | . . . Drone Recoveries . | . . . Exploration | -11 -10 -10 ------------- Run | Yrd Mat Sub Turns Passed 1136 | 79 399 658 Spaces Moved 844 | 42 350 452 Core 16 | 2 . 14 Treads . | . . . Legs . | . . . Wheels 828 | 40 350 438 Hover . | . . . Flight . | . . . Fastest Speed 50 | 50 100 100 Average Speed 104 | 97 100 107 Slowest Speed 200 | 100 100 200 Overloaded Moves . | . . . Propulsion Burnouts . | . . . Robots Hopped . | . . . Potential Cave-ins . | . . . Cave-ins Triggered . | . . . Exploration Rate (%) 29 | 4 56 27 Regions Visited 2 Branch Regions 1 Pre-discovered Areas 1 | . 1 . Known Exits Taken . | . . . Unknown Exits Taken 2 | 1 1 . Scrap Searched . | . . . Spaces Dug 5 | . . 5 Terrain Destroyed 105 | . . 105 Melee . | . . . Projectile . | . . . AOE 105 | . . 105 Terrain Rammed . | . . . Walls Destroyed . | . . . Machines Disabled . | . . . Actions | -11 -10 -10 --------- Run | Yrd Mat Sub Total 977 | 63 379 535 Wait 40 | 7 14 19 Move 842 | 41 349 452 Hop . | . . . Pick Up 7 | 2 1 4 Fast Attach 10 | 6 1 3 Attach 3 | . . 3 Detach 1 | . 1 . Swap 5 | . . 5 Drop 1 | . 1 . Fire 68 | 7 12 49 Melee . | . . . Ram . | . . . Kick . | . . . Crush . | . . . Escape Stasis . | . . . Rewire . | . . . Trap . | . . . Miscellaneous . | . . . Route ------- -11/Scrapyard -10/Materials (discovered 4 exits: [*Mat] / [*Min x2] / [*Sub]) -10/Subcaves History --------- Turn | Location | Event 15 | -11/Scrapyard | Discovered new exit (range 15) 80 | -11/Scrapyard | Entered Materials 107 | -10/Materials | Discovered new exit (range 14) 212 | -10/Materials | Discovered new exit (range 22) 280 | -10/Materials | Discovered new exit (range 14) 320 | -10/Materials | Build established: Mutant 455 | -10/Materials | Discovered new exit (range 10) 479 | -10/Materials | Entered Subcaves 480 | -10/Subcaves | Approached by a straggling Scientist 482 | -10/Subcaves | Learned location of 2 exits from Materials 543 | -10/Subcaves | Core integrity fell below 50% 575 | -10/Subcaves | Lost 3 parts (1p1n1u) 776 | -10/Subcaves | Core integrity fell below 20% 1137 | -10/Subcaves | Destroyed by Piercing Trap Last Messages --------------- CS-8XC(c): "I think it's somewhere north of here" 01053_ System corrupted: Matter fused (-5). 01081_ System corrupted: Heat flow error (+273). 01090_ Sub. Monowheel shoots sparks and powers down. CS-8XC(c): "I think it's somewhere northeast of here" 01097_ Triggered Piercing Trap. 01097_ Spikes shoot up from the floor. 01097_ Critical hit (Impale). 01104_ System corrupted: Energy discharge (-40). 01110_ Triggered Shrapnel Trap. 01110_ An expanding cloud of shrapnel blasts out in all directions. 01110_ Grenade Launcher destroyed. 01110_ Lgt. Ion Engine destroyed. 01110_ Com. Wheel destroyed. 01110_ Sub. Optics destroyed. 01120_ System corrupted: Heat flow error (+248). 01137_ Triggered Piercing Trap. 01137_ Spikes shoot up from the floor. 01137_ Critical hit (Impale). Map ----- +----------------------------------------------------+ | ?????????????????????????????????????????????????? | | ?????????????????????????????????????????????????? | | ?????????????????????????????????????????????????? | | ?????????????????????????????????????????????????? | | ?????????????????????????????????????????????????? | | ?????????????????????????????????????????????????? | | ?????????????????????????????????????????????????? | | ?????????????????????????????????????????????????? | | ?????????????????????????????????????????????????? | | ?????????????????????????????????????????????????? | | ?????????????????????????????????###?????????????? | | ?????????????????????????????????# ##????????????? | | ?????????????????????????????????# ##???????????? | | ????????????????????????????????## #???????????? | | ???????????????????????????????## #???????????? | | ???????????##????????????????###^ #????????????? | | ????????? ## ##??????????????#; ##????????????? | | ????????? ????????????## ;#????????????? | | ????????? ???????????## #????????????? | | ?????????# ????????### ;# #????????????? | | ?????????? ??????## ;;;##????????????? | | ????????????? ???### ; #?????????????? | | ???????????????# #### ####?????????????? | | ???????????????# # c ###??????????????? | | ???????# ### ^ ##?????????????? | | ???????? ^ @ #?????????????? | | ?????????# ## #?????????????? | | ?????????# ???## ######?????????????? | | ?????????# ?????### ####????????????????#?? | | ??????????# ????# ##?????????????????????? | | ??????????# ##??# ###??????????#???????????? | | ?????????## #?## ##????#####??????????????? | | ?????????# ## #???# ##???????????#?? | | ?????????# ## #### #?????????????? | | ????????## # # #?????????????? | | ????????# #??????????#### | | ??????# #??????????# | | ??????# ## ## #???#??#### # | | ?????# ???# ##????? #??????# ## | | ????? ??# ### ##?????????????## # | | ????? ??# #??# ###?????????###### & | | ?????? #####??## #??????#??### | | ???????? ????# ######????# | | ????????? ????## ### ##???# # | | ??????????# #????## ##??# ###### | | ??????????# ###?## ##?### ##### | | ??????????# #?# ##??# | | ???????????# ### ##?# | | ????????????# ## ### | | ?????? ?????# ## #### | +----------------------------------------------------+ Best States ------------- Heat Dissipation 25 Energy Generation 10 Energy Capacity 125 Matter Stores 300 Matter Capacity 300 Sight Range 21 Terrain Scan Range 16 Terrain Scan Density 10 Evasion (%) 40 Item Schematics ----------------- None Robot Schematics ------------------ None Fabricated ------------ Nothing Repaired ---------- Nothing Alien Tech Used ----------------- None Achievements -------------- None Challenges ------------ None Game ------ Seed CloakingGodTriangulator Manual? 0 Play Time 00:11:22 Cumulative 225.2 hours Start 2025.05.28 @ 23:40:01 End 2025.05.28 @ 23:51:10 Sessions 1 Manual Loads 0 Difficulty Rogue Special Mode None Game No. 176 Rogue 176 Adventurer 0 Explorer 0 Win Type - Total 6 Types 4/0/1/1/0/0/0/0/0/0 Lore% 75 Gallery% 67 Achievement% 56 Wizard Run 0 Options --------- Layout 2 ASCII 0 Keyboard 0 Movement Numpad Keybinds 0 Fullscreen 2 Font 16/Terminus Map View 55x47 Zoom Use 0% Tactical HUD 1 Map Filters NONE Filters NONE Steam 1 RUN: 0e90179f-cde2-4a28-8baf-895fd8062020